[Event "IX Iberoamericano Championship 2023"]
[Site "Panama City"]
[Date "2023.12.02"]
[Round "8.18"]
[White "Baules Rodriguez, Jorge Luis"]
[Black "Bravo Mallco, Kate Azumi"]
[Result "1-0"]
[ECO "B45"]
[WhiteElo "2283"]
[BlackElo "2004"]
[Annotator "RC"]
[PlyCount "105"]
[EventDate "2023.11.27"]
[EventType "swiss"]
[EventCountry "PAN"]
[SourceTitle "playchess.com"]
[Source "ChessBase"]
[SourceQuality "1"]
[TimeControl "5400+30"]

1. e4 {[%emt 0:00:20]} c5 {[%emt 0:15:18]} 2. Nf3 {[%emt 0:00:15]} Nc6 {[%emt 0:00:07]} 3. d4 {[%emt 0:00:09]} cxd4 {[%emt 0:00:05]} 4. Nxd4 {[%emt 0:00:05]} Nf6 {[%emt 0:00:07]} 5. Nc3 {[%emt 0:00:06]} e6 {[%emt 0:00:06]} 6. Ndb5 {[%emt 0:00:19]} Bb4 {[%emt 0:00:15]} 7. a3 {[%emt 0:00:09]} Bxc3+ {[%emt 0:00:05]} 8. Nxc3 {[%emt 0:00:05]} d5 {[%emt 0:00:03]} 9. exd5 {[%emt 0:00:39]} exd5 {[%emt 0:00:02]} 10. Bd3 {[%emt 0:00:22]} O-O {[%emt 0:00:04]} 11. O-O {[%emt 0:00:07]} d4 {[%emt 0:00:05]} 12. Ne2 {[%emt 0:00:06]} Bg4 {[%emt 0:00:03]} 13. h3 {[%emt 0:00:39]} Bxe2 {[%emt 0:00:24]} 14. Bxe2 {[%emt 0:02:27]} Qb6 {[%emt 0:10:25]} 15. Bf3 {[%emt 0:14:32]} Ne5 {[%emt 0:06:20]} 16. Bf4 {[%emt 0:00:32]} Nxf3+ {[%emt 0:00:09]} 17. Qxf3 {[%emt 0:00:02]} Rac8 {[%emt 0:02:53]} 18. Be5 {[%emt 0:10:17]} Rxc2 {[%emt 0:25:17]} 19. Qd3 {[%emt 0:00:17]} Rxb2 {[%emt 0:09:16]} 20. Bxd4 {[%emt 0:00:09]} Rd8 {[%emt 0:01:55]} 21. Rad1 {[%emt 0:15:05]} Rb3 {[%emt 0:18:05]} 22. Qc2 {[%emt 0:02:05]} Qe6 {[%emt 0:00:30]} 23. Rfe1 {[%emt 0:00:21]} Rc8 {[%emt 0:00:46]} 24. Bc5 {[%emt 0:03:13]} Rb5 {[%emt 0:06:44]} 25. Rxe6 {[%emt 0:00:36]} fxe6 {[%emt 0:00:01]} 26. Qe2 {[%emt 0:03:11]} Rbxc5 {[%emt 0:00:05]} 27. Qxe6+ {[%emt 0:00:05]} Kh8 {[%emt 0:00:23]} 28. Kh2 {[%emt 0:02:27]} h6 {[%emt 0:00:57]} 29. Rd3 {[%emt 0:02:50]} Rc3 {[%emt 0:01:08]} 30. a4 {[%emt 0:03:34]} b6 {[%emt 0:01:56]} 31. Qf5 {[%emt 0:01:25]} R3c5 {[%emt 0:01:35]} 32. Qg6 {[%emt 0:00:48]} R5c6 {[%emt 0:00:46]} 33. Re3 {[%emt 0:02:23]} R8c7 {[%emt 0:00:30]} 34. Qd3 {[%emt 0:00:15]} Rc5 {[%emt 0:00:34]} 35. Re6 {[%emt 0:01:34]} R5c6 {[%emt 0:00:30]} 36. Re5 {[%emt 0:00:35]} Rc5 {[%emt 0:00:21]} 37. f4 {[%emt 0:00:02]} Kg8 {[%emt 0:00:34]} 38. Re2 {[%emt 0:03:00]} Rd5 {[%emt 0:00:35]} 39. Qb3 {[%emt 0:00:48]} Kh7 {[%emt 0:00:28]} 40. g4 {[%emt 0:00:57]} Rcd7 {[%emt 0:00:31]} 41. Rg2 {[%emt 0:01:03]} Rd2 {[%emt 0:00:30]} 42. g5 {[%emt 0:00:58]} hxg5 {[%emt 0:00:10]} 43. fxg5 {[%emt 0:00:01]} Rxg2+ {[%emt 0:01:22]} 44. Kxg2 {[%emt 0:00:04]} Ne4 {[%emt 0:00:00]} 45. h4 {[%emt 0:00:46]} Nc5 {[%emt 0:00:27]} 46. Qc2+ {[%emt 0:00:29]} Kg8 {[%emt 0:00:15]} 47. h5 {[%emt 0:02:22]} Rd4 {[%emt 0:00:37]} 48. Qf5 {[%emt 0:00:58]} Rd8 {[%emt 0:01:11]} 49. g6 {[%emt 0:01:26]} Rf8 {[%emt 0:00:00]} 50. Qd5+ {[%emt 0:00:03]} Kh8 {[%emt 0:00:01]} 51. a5 {[%emt 0:00:16]} Rg8 {[%emt 0:00:55]} 52. Qf7 {[%emt 0:01:00]} bxa5 {[%emt 0:00:33]} 53. h6 {[%emt 0:00:07]} 1-0

[Event "IX Iberoamericano Championship 2023"]
[Site "Panama City"]
[Date "2023.12.02"]
[Round "9.2"]
[White "Diaz Perez, Michel Alejandro"]
[Black "Cori, Jorge"]
[Result "1/2-1/2"]
[ECO "B15"]
[WhiteElo "2459"]
[BlackElo "2626"]
[Annotator "ChessBase"]
[PlyCount "109"]
[EventDate "2023.11.27"]
[EventType "swiss"]
[EventCountry "PAN"]
[SourceTitle "playchess.com"]
[Source "ChessBase"]
[SourceQuality "1"]
[TimeControl "5400+30"]

1. e4 {[%emt 1:31:00]} c6 {[%emt 0:07:28]} 2. d4 {[%emt 0:00:00]} d5 {[%emt 0:00:21]} 3. Nc3 {[%emt 0:00:00]} dxe4 {[%emt 0:00:17]} 4. Nxe4 {[%emt 0:00:00]} Nf6 {[%emt 0:00:13]} 5. Nxf6+ {[%emt 0:00:00]} exf6 {[%emt 0:00:03]} 6. c3 {[%emt 0:00:00]} Bd6 {[%emt 0:00:04]} 7. Bd3 {[%emt 0:00:00]} O-O {[%emt 0:01:11]} 8. Qc2 {[%emt 0:00:00]} Re8+ {[%emt 0:01:18]} 9. Ne2 {[%emt 0:00:00]} h5 {[%emt 0:04:08]} 10. O-O {[%emt 0:00:00]} Nd7 {[%emt 0:00:18]} 11. Bf4 {[%emt 0:00:00]} Nf8 {[%emt 0:22:46]} 12. Bxd6 {[%emt 0:00:00]} Qxd6 {[%emt 0:00:08]} 13. Rfe1 {[%emt 0:00:00]} h4 {[%emt 0:00:38]} 14. h3 {[%emt 0:00:00]} Bd7 {[%emt 0:12:56]} 15. Rad1 {[%emt 0:00:00]} Re7 {[%emt 0:01:24]} 16. Nc1 {[%emt 0:00:00]} Rae8 {[%emt 0:05:17]} 17. Qd2 {[%emt 0:00:00]} g5 {[%emt 0:00:46]} 18. Bf1 {[%emt 0:00:00]} Ng6 {[%emt 0:11:43]} 19. Nd3 {[%emt 0:00:00]} Bf5 {[%emt 0:01:01]} 20. Rxe7 {[%emt 0:00:00]} Rxe7 {[%emt 0:00:03]} 21. Re1 {[%emt 0:00:00]} Rxe1 {[%emt 0:10:42]} 22. Qxe1 {[%emt 0:00:00]} Qe6 {[%emt 0:00:05]} 23. Qxe6 {[%emt 0:00:00]} fxe6 {[%emt 0:00:10]} 24. Nc5 {[%emt 0:00:00]} b6 {[%emt 0:00:07]} 25. Na6 {[%emt 0:00:00]} Kf7 {[%emt 0:01:31]} 26. Nb4 {[%emt 0:00:00]} Ne7 {[%emt 0:00:07]} 27. Ba6 {[%emt 0:00:00]} e5 {[%emt 0:08:13]} 28. dxe5 {[%emt 0:00:00]} fxe5 {[%emt 0:00:02]} 29. Bd3 {[%emt 0:00:00]} Ke6 {[%emt 0:04:12]} 30. Kf1 {[%emt 0:00:00]} c5 {[%emt 0:00:33]} 31. Bxf5+ {[%emt 0:00:00]} Kxf5 {[%emt 0:00:04]} 32. Nc2 {[%emt 0:00:00]} Nd5 {[%emt 0:02:37]} 33. g3 {[%emt 0:00:00]} g4 {[%emt 0:05:28]} 34. c4 {[%emt 0:00:00]} Nf6 {[%emt 0:00:04]} 35. Ne3+ {[%emt 0:00:00]} Kg5 {[%emt 0:00:02]} 36. Nxg4 {[%emt 0:00:00]} Nxg4 {[%emt 0:00:18]} 37. hxg4 {[%emt 0:00:00]} Kxg4 {[%emt 0:01:42]} 38. gxh4 {[%emt 0:00:00]} Kxh4 {[%emt 0:00:05]} 39. Ke2 {[%emt 0:00:00]} Kg4 {[%emt 0:00:17]} 40. Ke3 {[%emt 0:00:00]} Kf5 {[%emt 0:00:06]} 41. f3 {[%emt 0:00:00]} a6 {[%emt 0:01:24]} 42. b3 {[%emt 0:00:00]} Ke6 {[%emt 0:01:01]} 43. Ke4 {[%emt 0:00:00]} b5 {[%emt 0:00:03]} 44. cxb5 {[%emt 0:17:19]} axb5 {[%emt 0:00:02]} 45. a4 {[%emt 0:01:29]} c4 {[%emt 0:00:05]} 46. axb5 {[%emt 0:02:00]} cxb3 {[%emt 0:00:06]} 47. Kd3 {[%emt 0:00:03]} Kd5 {[%emt 0:00:05]} 48. Kc3 {[%emt 0:00:03]} Kc5 {[%emt 0:00:04]} 49. Kxb3 {[%emt 0:00:03]} Kxb5 {[%emt 0:00:04]} 50. Kc3 {[%emt 0:00:02]} Kc5 {[%emt 0:00:06]} 51. Kd3 {[%emt 0:00:03]} Kd5 {[%emt 0:00:05]} 52. Ke3 {[%emt 0:00:04]} Ke6 {[%emt 0:00:05]} 53. Ke4 {[%emt 0:00:03]} Kf6 {[%emt 0:00:05]} 54. f4 {[%emt 0:00:03]} exf4 {[%emt 0:00:05]} 55. Kxf4 {[%emt 0:00:02]} 1/2-1/2

[Event "IX Iberoamericano Championship 2023"]
[Site "Panama City"]
[Date "2023.12.02"]
[Round "9.3"]
[White "Zambrana, Osvaldo"]
[Black "Mareco, Sandro"]
[Result "1-0"]
[ECO "C54"]
[WhiteElo "2400"]
[BlackElo "2606"]
[Annotator "ChessBase"]
[PlyCount "53"]
[EventDate "2023.11.27"]
[EventType "swiss"]
[EventCountry "PAN"]
[SourceTitle "playchess.com"]
[Source "ChessBase"]
[SourceQuality "1"]
[TimeControl "5400+30"]

1. e4 {[%emt 0:13:24]} e5 {[%emt 0:00:04]} 2. Nf3 {[%emt 0:00:09]} Nc6 {[%emt 0:00:03]} 3. Bc4 {[%emt 0:00:06]} Bc5 {[%emt 0:00:04]} 4. O-O {[%emt 0:00:07]} Nf6 {[%emt 0:00:02]} 5. d3 {[%emt 0:00:07]} d6 {[%emt 0:00:04]} 6. c3 {[%emt 0:00:05]} a5 {[%emt 0:00:02]} 7. Re1 {[%emt 0:00:39]} O-O {[%emt 0:00:07]} 8. h3 {[%emt 0:00:09]} Be6 {[%emt 0:00:31]} 9. Nbd2 {[%emt 0:00:28]} Ba7 {[%emt 0:08:36]} 10. a4 {[%emt 0:07:49]} h6 {[%emt 0:07:01]} 11. Nf1 {[%emt 0:11:29]} Nxe4 {[%emt 0:07:43]} 12. Rxe4 {[%emt 0:01:09]} d5 {[%emt 0:00:04]} 13. Bxd5 {[%emt 0:00:22]} Bxd5 {[%emt 0:15:40]} 14. Re1 {[%emt 0:00:20]} Bc5 {[%emt 0:07:17]} 15. Ng3 {[%emt 0:18:05]} Re8 {[%emt 0:00:43]} 16. Be3 {[%emt 0:08:34]} Bf8 {[%emt 0:01:23]} 17. Nd2 {[%emt 0:06:53]} g6 {[%emt 0:10:43]} 18. Rf1 {[%emt 0:11:01]} f5 {[%emt 0:15:28]} 19. f4 {[%emt 0:00:14]} exf4 {[%emt 0:12:21]} 20. Bxf4 {[%emt 0:00:02]} g5 {[%emt 0:02:35]} 21. Nxf5 {[%emt 0:00:10]} gxf4 {[%emt 0:00:03]} 22. Rxf4 {[%emt 0:00:09]} Kh8 {[%emt 0:00:18]} 23. Qf1 {[%emt 0:02:20]} Ne5 {[%emt 0:01:14]} 24. d4 {[%emt 0:01:01]} Ng6 {[%emt 0:00:24]} 25. Rg4 {[%emt 0:07:33]} Ra6 {[%emt 0:00:11]} 26. Qd3 {[%emt 0:02:01]} Be6 {[%emt 0:02:54]} 27. Rxg6 {[%emt 0:00:51]} 1-0

[Event "IX Iberoamericano Championship 2023"]
[Site "Panama City"]
[Date "2023.12.02"]
[Round "9.4"]
[White "Almeida Quintana, Omar"]
[Black "Espinosa Veloz, Ermes"]
[Result "1/2-1/2"]
[ECO "E92"]
[WhiteElo "2509"]
[BlackElo "2478"]
[Annotator "ChessBase"]
[PlyCount "23"]
[EventDate "2023.11.27"]
[EventType "swiss"]
[EventCountry "PAN"]
[SourceTitle "playchess.com"]
[Source "ChessBase"]
[SourceQuality "1"]
[TimeControl "5400+30"]

1. d4 {[%emt 0:00:26]} Nf6 {[%emt 0:00:00]} 2. Nf3 {[%emt 0:00:05]} g6 {[%emt 0:00:22]} 3. c4 {[%emt 0:00:08]} Bg7 {[%emt 0:00:22]} 4. Nc3 {[%emt 0:00:04]} O-O {[%emt 0:00:36]} 5. e4 {[%emt 0:00:03]} d6 {[%emt 0:00:12]} 6. Be2 {[%emt 0:00:04]} e5 {[%emt 0:00:07]} 7. dxe5 {[%emt 0:00:07]} dxe5 {[%emt 0:00:08]} 8. Qxd8 {[%emt 0:00:03]} Rxd8 {[%emt 0:00:10]} 9. Nd5 {[%emt 0:00:09]} Nxd5 {[%emt 0:00:24]} 10. cxd5 {[%emt 0:00:04]} c6 {[%emt 0:00:14]} 11. Bc4 {[%emt 0:00:19]} b5 {[%emt 0:00:30]} 12. Bb3 {[%emt 0:00:07]} 1/2-1/2

[Event "IX Iberoamericano Championship 2023"]
[Site "Panama City"]
[Date "2023.12.02"]
[Round "9.5"]
[White "Soto Hernandez, Henry"]
[Black "Ordaz Valdes, Lisandra Teresa"]
[Result "1-0"]
[ECO "A06"]
[WhiteElo "2490"]
[BlackElo "2306"]
[Annotator "ChessBase"]
[PlyCount "83"]
[EventDate "2023.11.27"]
[EventType "swiss"]
[EventCountry "PAN"]
[SourceTitle "playchess.com"]
[Source "ChessBase"]
[SourceQuality "1"]
[TimeControl "5400+30"]

1. Nf3 {[%emt 0:00:03]} d5 {[%emt 0:02:19]} 2. g3 {[%emt 0:00:07]} Nf6 {[%emt 0:00:20]} 3. Bg2 {[%emt 0:00:07]} e6 {[%emt 0:00:30]} 4. O-O {[%emt 0:00:11]} Be7 {[%emt 0:00:43]} 5. b3 {[%emt 0:00:13]} O-O {[%emt 0:02:38]} 6. Bb2 {[%emt 0:00:08]} c5 {[%emt 0:01:45]} 7. d4 {[%emt 0:03:17]} cxd4 {[%emt 0:09:06]} 8. Bxd4 {[%emt 0:10:27]} Nc6 {[%emt 0:06:05]} 9. Bb2 {[%emt 0:01:35]} b6 {[%emt 0:08:17]} 10. Nbd2 {[%emt 0:09:16]} Bb7 {[%emt 0:07:21]} 11. e3 {[%emt 0:07:22]} Rc8 {[%emt 0:08:46]} 12. c4 {[%emt 0:08:26]} Qd7 {[%emt 0:11:49]} 13. Qe2 {[%emt 0:06:44]} Rfd8 {[%emt 0:00:07]} 14. Rfd1 {[%emt 0:01:52]} Qe8 {[%emt 0:06:45]} 15. h3 {[%emt 0:08:33]} h6 {[%emt 0:08:16]} 16. g4 {[%emt 0:07:46]} Ba6 {[%emt 0:10:22]} 17. Rac1 {[%emt 0:10:38]} Ne4 {[%emt 0:05:59]} 18. Nxe4 {[%emt 0:04:36]} dxe4 {[%emt 0:00:07]} 19. Ne5 {[%emt 0:00:13]} Nxe5 {[%emt 0:03:08]} 20. Bxe5 {[%emt 0:00:05]} Bb7 {[%emt 0:00:03]} 21. Bb2 {[%emt 0:04:23]} Qc6 {[%emt 0:02:54]} 22. Rxd8+ {[%emt 0:01:48]} Rxd8 {[%emt 0:00:05]} 23. Rd1 {[%emt 0:00:13]} Rxd1+ {[%emt 0:00:33]} 24. Qxd1 {[%emt 0:00:05]} Qd6 {[%emt 0:01:20]} 25. Qc2 {[%emt 0:01:59]} Qc6 {[%emt 0:00:20]} 26. Bc3 {[%emt 0:01:54]} Bf6 {[%emt 0:00:06]} 27. Bxf6 {[%emt 0:01:09]} gxf6 {[%emt 0:00:05]} 28. b4 {[%emt 0:00:30]} Kg7 {[%emt 0:00:43]} 29. a3 {[%emt 0:01:30]} b5 {[%emt 0:02:54]} 30. c5 {[%emt 0:00:46]} Qd5 {[%emt 0:00:05]} 31. a4 {[%emt 0:01:27]} a6 {[%emt 0:01:45]} 32. Bf1 {[%emt 0:00:33]} Bc6 {[%emt 0:00:31]} 33. axb5 {[%emt 0:00:32]} axb5 {[%emt 0:00:05]} 34. Be2 {[%emt 0:01:16]} Kf8 {[%emt 0:00:22]} 35. Qb2 {[%emt 0:01:39]} Ke7 {[%emt 0:00:08]} 36. Kg2 {[%emt 0:00:50]} Qe5 {[%emt 0:01:32]} 37. Qa3 {[%emt 0:00:55]} Qc7 {[%emt 0:00:32]} 38. Qa6 {[%emt 0:00:37]} Qd7 {[%emt 0:00:32]} 39. Qb6 {[%emt 0:00:13]} Qe8 {[%emt 0:00:29]} 40. Qc7+ {[%emt 0:00:25]} Qd7 {[%emt 0:00:24]} 41. Qb6 {[%emt 0:00:08]} Qe8 {[%emt 0:00:05]} 42. Bxb5 {[%emt 0:00:16]} 1-0

[Event "IX Iberoamericano Championship 2023"]
[Site "Panama City"]
[Date "2023.12.02"]
[Round "9.6"]
[White "De La Riva Aguado, Oscar"]
[Black "Hernandez Guerrero, Gilberto"]
[Result "1/2-1/2"]
[ECO "A08"]
[WhiteElo "2437"]
[BlackElo "2527"]
[Annotator "ChessBase"]
[PlyCount "59"]
[EventDate "2023.11.27"]
[EventType "swiss"]
[EventCountry "PAN"]
[SourceTitle "playchess.com"]
[Source "ChessBase"]
[SourceQuality "1"]
[TimeControl "5400+30"]

1. e4 {[%emt 0:00:06]} c5 {[%emt 0:00:17]} 2. Nf3 {[%emt 0:00:16]} e6 {[%emt 0:00:07]} 3. d3 {[%emt 0:01:13]} Nc6 {[%emt 0:04:23]} 4. g3 {[%emt 0:00:18]} d5 {[%emt 0:00:40]} 5. Qe2 {[%emt 0:00:19]} Nge7 {[%emt 0:00:14]} 6. Bg2 {[%emt 0:00:29]} g6 {[%emt 0:00:17]} 7. O-O {[%emt 0:03:55]} Bg7 {[%emt 0:00:15]} 8. e5 {[%emt 0:01:49]} h6 {[%emt 0:01:24]} 9. h4 {[%emt 0:00:05]} b6 {[%emt 0:02:24]} 10. c3 {[%emt 0:01:13]} Ba6 {[%emt 0:08:38]} 11. Re1 {[%emt 0:06:11]} Qd7 {[%emt 0:03:33]} 12. Na3 {[%emt 0:01:40]} Rc8 {[%emt 0:13:42]} 13. Nc2 {[%emt 0:05:05]} d4 {[%emt 0:01:03]} 14. c4 {[%emt 0:03:05]} Bb7 {[%emt 0:00:42]} 15. a3 {[%emt 0:02:50]} a5 {[%emt 0:02:03]} 16. Rb1 {[%emt 0:05:03]} a4 {[%emt 0:02:09]} 17. b4 {[%emt 0:00:47]} axb3 {[%emt 0:00:21]} 18. Rxb3 {[%emt 0:00:06]} Qd8 {[%emt 0:03:45]} 19. Bf4 {[%emt 0:07:20]} Ra8 {[%emt 0:04:33]} 20. Reb1 {[%emt 0:06:06]} Nc8 {[%emt 0:03:24]} 21. Qd2 {[%emt 0:02:34]} Ra7 {[%emt 0:01:51]} 22. Nce1 {[%emt 0:03:16]} Qc7 {[%emt 0:01:24]} 23. Qe2 {[%emt 0:09:35]} Na5 {[%emt 0:03:34]} 24. R3b2 {[%emt 0:00:07]} Nc6 {[%emt 0:00:13]} 25. Rb3 {[%emt 0:00:27]} Na5 {[%emt 0:04:13]} 26. R3b2 {[%emt 0:00:17]} Nc6 {[%emt 0:00:13]} 27. Rb3 {[%emt 0:00:20]} O-O {[%emt 0:00:42]} 28. Nh2 Nxe5 {[%emt 0:00:30]} 29. Bxb7 Rxb7 {[%emt 0:00:30]} 30. Ng4 1/2-1/2

[Event "IX Iberoamericano Championship 2023"]
[Site "Panama City"]
[Date "2023.12.02"]
[Round "9.7"]
[White "Almedina Ortiz, Edgardo J."]
[Black "Berdayes Ason, Dylan Isidro"]
[Result "0-1"]
[ECO "D00"]
[WhiteElo "2158"]
[BlackElo "2507"]
[Annotator "ChessBase"]
[PlyCount "90"]
[EventDate "2023.11.27"]
[EventType "swiss"]
[EventCountry "PAN"]
[SourceTitle "playchess.com"]
[Source "ChessBase"]
[SourceQuality "1"]
[TimeControl "5400+30"]

1. d4 {[%emt 0:00:54]} d5 {[%emt 0:00:48]} 2. Bf4 {[%emt 0:01:41]} Nf6 {[%emt 0:00:03]} 3. e3 {[%emt 0:00:10]} c5 {[%emt 0:00:09]} 4. dxc5 {[%emt 0:00:22]} e6 {[%emt 0:04:51]} 5. b4 {[%emt 0:00:18]} a5 {[%emt 0:02:54]} 6. c3 {[%emt 0:00:10]} Bd7 {[%emt 0:06:44]} 7. Nd2 {[%emt 0:00:28]} axb4 {[%emt 0:03:45]} 8. cxb4 {[%emt 0:00:07]} b6 {[%emt 0:00:04]} 9. cxb6 {[%emt 0:01:48]} Qxb6 {[%emt 0:00:06]} 10. a3 {[%emt 0:00:33]} Nc6 {[%emt 0:00:44]} 11. Ngf3 {[%emt 0:00:35]} Nh5 {[%emt 0:00:25]} 12. Be5 {[%emt 0:01:37]} Nxe5 {[%emt 0:01:35]} 13. Nxe5 {[%emt 0:00:08]} Nf6 {[%emt 0:00:01]} 14. Nxd7 {[%emt 0:00:27]} Nxd7 {[%emt 0:00:04]} 15. Be2 {[%emt 0:05:13]} Bd6 {[%emt 0:00:02]} 16. O-O {[%emt 0:00:34]} O-O {[%emt 0:00:07]} 17. Qb3 {[%emt 0:04:17]} Be5 {[%emt 0:01:55]} 18. Rac1 {[%emt 0:03:28]} Rfb8 {[%emt 0:01:34]} 19. Rfd1 {[%emt 0:15:08]} Qa7 {[%emt 0:01:04]} 20. Nb1 {[%emt 0:00:23]} g6 {[%emt 0:03:27]} 21. g3 {[%emt 0:00:14]} Nc5 {[%emt 0:00:18]} 22. Qc2 {[%emt 0:00:40]} Na4 {[%emt 0:00:03]} 23. Qb3 {[%emt 0:03:08]} h5 {[%emt 0:00:26]} 24. Rc6 {[%emt 0:00:56]} h4 {[%emt 0:01:45]} 25. Qc2 {[%emt 0:59:41]} Qe7 {[%emt 0:04:08]} 26. Kg2 {[%emt 0:00:00]} Kg7 {[%emt 0:00:51]} 27. Rc1 {[%emt 0:00:00]} Rh8 {[%emt 0:00:38]} 28. f4 {[%emt 0:00:00]} Bb2 {[%emt 0:00:01]} 29. Rd1 {[%emt 0:00:00]} hxg3 {[%emt 0:00:16]} 30. hxg3 {[%emt 0:00:00]} Bf6 {[%emt 0:03:05]} 31. Rc7 {[%emt 0:00:00]} Qf8 {[%emt 0:00:02]} 32. Rh1 {[%emt 0:00:00]} Rxh1 {[%emt 0:01:21]} 33. Kxh1 {[%emt 0:00:00]} Nb2 {[%emt 0:02:55]} 34. Kg2 {[%emt 0:00:00]} Nc4 {[%emt 0:00:24]} 35. Bxc4 {[%emt 0:00:00]} dxc4 {[%emt 0:00:01]} 36. Qxc4 {[%emt 0:05:30]} Qd8 {[%emt 0:01:07]} 37. Kf2 {[%emt 0:00:00]} Qd1 {[%emt 0:04:15]} 38. Qxe6 {[%emt 0:00:00]} Rf8 {[%emt 0:00:02]} 39. Qa2 {[%emt 0:00:00]} Qh1 {[%emt 0:01:16]} 40. Nd2 {[%emt 0:00:00]} Qh2+ {[%emt 0:02:31]} 41. Kf3 {[%emt 0:00:00]} g5 {[%emt 0:01:07]} 42. fxg5 {[%emt 0:00:00]} Be5 {[%emt 0:00:24]} 43. Rc2 {[%emt 0:00:00]} Qxg3+ {[%emt 0:00:32]} 44. Ke2 {[%emt 0:00:00]} Qg4+ {[%emt 0:06:49]} 45. Kf1 {[%emt 0:03:22]} Rh8 {[%emt 0:48:21]} 0-1

[Event "IX Iberoamericano Championship 2023"]
[Site "Panama City"]
[Date "2023.12.02"]
[Round "9.8"]
[White "Ulloa, Ruben Abraham"]
[Black "Miranda Mesa, Elier"]
[Result "0-1"]
[ECO "B40"]
[WhiteElo "2150"]
[BlackElo "2490"]
[Annotator "ChessBase"]
[PlyCount "108"]
[EventDate "2023.11.27"]
[EventType "swiss"]
[EventCountry "PAN"]
[SourceTitle "playchess.com"]
[Source "ChessBase"]
[SourceQuality "1"]
[TimeControl "5400+30"]

1. e4 {[%emt 0:11:09]} c5 {[%emt 0:00:47]} 2. Nf3 {[%emt 0:01:26]} e6 {[%emt 0:00:26]} 3. b3 {[%emt 0:00:47]} b6 {[%emt 0:00:44]} 4. Bb2 {[%emt 0:02:47]} Bb7 {[%emt 0:00:06]} 5. e5 {[%emt 0:01:40]} Nc6 {[%emt 0:01:56]} 6. Na3 {[%emt 0:04:07]} Nge7 {[%emt 0:12:09]} 7. Nc4 {[%emt 0:02:45]} Nd5 {[%emt 0:09:24]} 8. g3 {[%emt 0:01:37]} Be7 {[%emt 0:02:46]} 9. Bg2 {[%emt 0:01:32]} O-O {[%emt 0:00:33]} 10. O-O {[%emt 0:03:45]} Qc7 {[%emt 0:03:19]} 11. Re1 {[%emt 0:02:05]} b5 {[%emt 0:02:03]} 12. Ne3 {[%emt 0:01:15]} Nxe3 {[%emt 0:02:54]} 13. dxe3 {[%emt 0:03:50]} c4 {[%emt 0:11:25]} 14. Bd4 {[%emt 0:01:04]} Rac8 {[%emt 0:03:12]} 15. bxc4 {[%emt 0:07:25]} bxc4 {[%emt 0:09:53]} 16. c3 {[%emt 0:00:35]} Qa5 {[%emt 0:00:49]} 17. Qc2 {[%emt 0:01:28]} d6 {[%emt 0:03:34]} 18. exd6 {[%emt 0:00:15]} Bxd6 {[%emt 0:00:01]} 19. e4 {[%emt 0:00:08]} Rfd8 {[%emt 0:01:00]} 20. Rab1 {[%emt 0:01:08]} Ba8 {[%emt 0:00:38]} 21. h4 {[%emt 0:00:52]} Nxd4 {[%emt 0:03:32]} 22. Nxd4 {[%emt 0:00:07]} Bc5 {[%emt 0:02:12]} 23. Red1 {[%emt 0:01:37]} Rd7 {[%emt 0:00:50]} 24. Nf3 {[%emt 0:01:37]} Rxd1+ {[%emt 0:01:21]} 25. Rxd1 {[%emt 0:00:10]} Bc6 {[%emt 0:02:07]} 26. Qb2 {[%emt 0:03:39]} Bxe4 {[%emt 0:02:29]} 27. Ng5 {[%emt 0:01:01]} Bd3 {[%emt 0:02:35]} 28. Bf1 {[%emt 0:02:49]} h6 {[%emt 0:02:26]} 29. Bxd3 {[%emt 0:00:23]} hxg5 {[%emt 0:00:35]} 30. Bb1 {[%emt 0:03:09]} gxh4 {[%emt 0:01:11]} 31. Qb7 {[%emt 0:02:35]} Rd8 {[%emt 0:03:40]} 32. Rxd8+ {[%emt 0:00:09]} Qxd8 {[%emt 0:00:01]} 33. gxh4 {[%emt 0:00:13]} g6 {[%emt 0:01:50]} 34. Qe4 {[%emt 0:01:04]} Qd2 {[%emt 0:00:21]} 35. Qc2 {[%emt 0:04:10]} Bxf2+ {[%emt 0:00:23]} 36. Kg2 {[%emt 0:01:01]} Qxc2 {[%emt 0:00:10]} 37. Bxc2 {[%emt 0:00:07]} Bxh4 {[%emt 0:00:31]} 38. Ba4 {[%emt 0:00:19]} Be1 {[%emt 0:00:07]} 39. Bb5 {[%emt 0:00:07]} Bxc3 {[%emt 0:00:02]} 40. Bxc4 {[%emt 0:00:08]} Kg7 {[%emt 0:00:01]} 41. Kf3 {[%emt 0:00:23]} Kf6 {[%emt 0:00:11]} 42. Bb5 {[%emt 0:00:06]} Ke7 {[%emt 0:00:15]} 43. Kf4 {[%emt 0:00:18]} Bd2+ {[%emt 0:00:17]} 44. Ke4 {[%emt 0:00:18]} f5+ {[%emt 0:00:05]} 45. Ke5 {[%emt 0:00:26]} Bc3+ {[%emt 0:00:05]} 46. Kf4 {[%emt 0:00:05]} Kf6 {[%emt 0:00:02]} 47. Be8 {[%emt 0:00:14]} e5+ {[%emt 0:00:16]} 48. Kf3 {[%emt 0:00:08]} e4+ {[%emt 0:00:12]} 49. Kf4 {[%emt 0:00:14]} g5+ {[%emt 0:00:13]} 50. Ke3 {[%emt 0:00:11]} Ke5 {[%emt 0:00:04]} 51. Bg6 {[%emt 0:00:08]} f4+ {[%emt 0:00:50]} 52. Ke2 {[%emt 0:00:05]} f3+ {[%emt 0:00:13]} 53. Ke3 {[%emt 0:00:07]} Bd4+ {[%emt 0:00:06]} 54. Kd2 {[%emt 0:00:11]} e3+ {[%emt 0:00:06]} 0-1